bitfinex/quotes_BTCUSD_20250523
["timestamp","ask_amount","ask_price","bid_price","bid_amount"]
[1748004401974,0.03160446,108670.0,108660.0,0.90185106]
[1748004402185,0.04080646,108670.0,108660.0,0.90185106]
[1748004402401,0.02240306,108670.0,108660.0,0.90185106]
[1748004402821,0.02240315,108670.0,108660.0,0.90185106]
[1748004403024,0.004,108670.0,108660.0,0.90185106]
[1748004403656,0.0132014,108670.0,108660.0,0.90185106]
[1748004403893,0.004,108670.0,108660.0,0.62597106]
[1748004404098,0.004,108670.0,108660.0,1.40941106]
[1748004404928,0.004,108670.0,108660.0,1.49895662]
[1748004405342,0.004,108670.0,108660.0,1.89895662]
[1748004405546,0.004,108670.0,108660.0,1.62307662]
[1748004405749,0.004,108670.0,108660.0,1.89895662]
[1748004405953,0.004,108670.0,108660.0,1.91349747]
[1748004406573,0.004,108670.0,108660.0,1.63761747]
[1748004406788,0.004,108670.0,108660.0,1.91349747]
[1748004407203,0.004,108670.0,108660.0,1.89895662]
[1748004407816,0.004,108670.0,108660.0,1.55895662]
[1748004408023,0.004,108670.0,108660.0,1.57349747]
[1748004408850,0.004,108670.0,108660.0,0.79005747]
[1748004409128,0.004,108670.0,108660.0,1.57341747]
[1748004409278,0.004,108670.0,108660.0,1.37556286]
[1748004410020,0.004,108670.0,108660.0,1.72647354]
[1748004410650,0.004,108670.0,108660.0,1.45063354]
[1748004410809,0.0132014,108670.0,108660.0,1.71193269]
[1748004411000,0.20644717,108670.0,108660.0,0.51843068]
[1748004411199,0.20644717,108670.0,108660.0,0.70249105]
[1748004411608,0.20644717,108670.0,108660.0,0.72029399]
[1748004411809,0.20644717,108670.0,108660.0,0.70998631]
[1748004412159,0.22485142,108670.0,108660.0,0.71918907]
[1748004412362,0.18404343,108670.0,108660.0,0.70998631]
[1748004412526,0.18404343,108670.0,108660.0,0.50752]
[1748004412746,0.18404343,108670.0,108660.0,0.70078321]
[1748004412988,0.18404343,108670.0,108660.0,0.19326321]
[1748004413182,0.18404343,108670.0,108660.0,0.47830597]
[1748004414016,0.18404343,108670.0,108660.0,0.4691033]
[1748004414210,0.18404343,108670.0,108660.0,0.46910338]
[1748004414420,0.18404343,108670.0,108660.0,0.48750915]
[1748004414758,0.00920098,108680.0,108670.0,0.19324543]
[1748004414967,0.01840357,108670.0,108660.0,0.47830513]
[1748004415179,0.21164951,108670.0,108660.0,0.97662338]
[1748004415381,0.21164951,108670.0,108660.0,0.98582631]
[1748004415590,0.21164951,108670.0,108660.0,0.96742037]
[1748004415795,0.21164951,108670.0,108660.0,0.98582597]
[1748004416003,0.21164951,108670.0,108660.0,0.99502856]
[1748004416212,0.21164951,108670.0,108660.0,0.9766233]
[1748004416421,0.21164951,108670.0,108660.0,0.98582614]
[1748004416634,0.20244768,108670.0,108660.0,0.97662321]
[1748004416843,0.20244768,108670.0,108660.0,0.98582597]
[1748004417861,0.20244768,108670.0,108660.0,0.9766233]
[1748004418117,0.20244768,108670.0,108660.0,0.20246606]
[1748004418321,0.20244768,108670.0,108660.0,0.98582606]
[1748004418526,0.01840391,108670.0,108660.0,0.99502873]
[1748004418732,0.20244734,108670.0,108660.0,0.99502873]
[1748004418947,0.20244734,108670.0,108660.0,0.9766233]
[1748004419177,0.19322773,108680.0,108670.0,0.19324543]
[1748004419380,0.03680697,108670.0,108660.0,0.98582563]
[1748004419580,0.23005325,108670.0,108660.0,1.39502814]
[1748004419942,0.22085159,108670.0,108660.0,1.38582563]
[1748004420128,0.21164968,108670.0,108660.0,1.39502856]
[1748004420934,0.1932456,108670.0,108660.0,0.90752]
[1748004421138,0.1932456,108670.0,108660.0,1.36742037]
[1748004421426,0.1932456,108670.0,108660.0,0.78336]
[1748004421641,0.18404343,108670.0,108660.0,0.97662338]
[1748004421847,0.18404343,108670.0,108660.0,0.98582631]
[1748004422051,0.18404343,108670.0,108660.0,1.38582631]
[1748004422262,0.18404343,108670.0,108660.0,1.39502915]
[1748004422475,0.18404343,108670.0,108660.0,1.40423182]
[1748004422685,0.18404343,108670.0,108660.0,0.90752]
[1748004422905,0.18404343,108670.0,108660.0,0.4]
[1748004423127,0.18404343,108670.0,108640.0,0.39736]
[1748004423128,0.20248478,108650.0,108640.0,0.39736]
[1748004423342,0.20248478,108650.0,108640.0,0.6732]
[1748004423567,0.29203034,108650.0,108640.0,0.41195922]
[1748004423798,0.29203034,108650.0,108640.0,0.68779922]
[1748004424255,0.29203034,108650.0,108640.0,0.01463922]
[1748004424500,1.0102957,108650.0,108640.0,0.01563922]
[1748004424750,1.0102957,108650.0,108620.0,0.02942745]
[1748004424751,0.57552172,108630.0,108620.0,0.02942745]
[1748004424999,0.19336999,108600.0,108590.0,0.63734488]
[1748004425246,0.1933878,108590.0,108580.0,0.54002]
[1748004425498,0.1933878,108590.0,108580.0,0.78336]
[1748004425736,0.1934056,108580.0,108570.0,0.81486]
[1748004425967,0.20261514,108580.0,108570.0,1.01749398]
[1748004426203,0.20061514,108580.0,108570.0,1.42658886]
[1748004426616,0.1914056,108580.0,108570.0,0.40909488]
[1748004426828,0.1894056,108580.0,108570.0,0.28501488]
[1748004427037,0.1894056,108580.0,108570.0,0.00909488]
[1748004427245,0.1894056,108580.0,108570.0,0.01309488]
[1748004427883,0.1894056,108580.0,108570.0,0.00451039]
[1748004428323,0.1894056,108580.0,108570.0,0.00651039]
[1748004428550,0.19344123,108560.0,108550.0,0.90548]
[1748004428803,0.19344123,108560.0,108550.0,0.91418036]
[1748004429035,0.28298679,108560.0,108550.0,0.00870036]
[1748004429265,0.19345906,108550.0,108540.0,0.39309002]
[1748004429500,0.19245906,108550.0,108540.0,0.39324317]
[1748004430207,0.19245906,108550.0,108540.0,0.58565186]
[1748004430208,0.20167114,108550.0,108540.0,0.58565186]
[1748004430498,0.02042086,108570.0,108560.0,0.20265264]
[1748004430736,0.002,108570.0,108560.0,1.04320601]
[1748004430977,0.02963065,108570.0,108560.0,1.04320601]
[1748004431403,0.20463364,108570.0,108560.0,0.81292]
[1748004431607,0.20267098,108550.0,108540.0,1.19926137]
[1748004431794,0.20267098,108550.0,108540.0,0.66220137]
[1748004432984,0.20267098,108550.0,108540.0,0.00015315]
[1748004432985,0.29421654,108550.0,108540.0,0.00015315]
[1748004433400,0.66681654,108550.0,108540.0,0.00015315]
[1748004433607,0.75633805,108550.0,108540.0,0.00015315]
[1748004433849,0.75433805,108550.0,108540.0,0.00015315]
[1748004434027,0.75533805,108550.0,108540.0,0.00015315]
[1748004434441,0.66481654,108550.0,108540.0,0.00015315]
[1748004434846,0.66881654,108550.0,108540.0,0.00015315]
[1748004435250,0.68735739,108550.0,108540.0,0.00015315]
[1748004435462,0.74146166,108550.0,108540.0,0.00015315]
[1748004436018,0.72765739,108550.0,108540.0,0.00015315]
[1748004436240,1.17474318,108550.0,108540.0,0.00015315]
[1748004436467,1.15474318,108550.0,108540.0,0.00015315]
[1748004436680,0.56484568,108510.0,108500.0,4e-05]
[1748004436888,0.65439124,108510.0,108500.0,0.00055099]
[1748004437101,0.76925198,108510.0,108500.0,0.00055099]
[1748004437308,1.10147703,108510.0,108500.0,0.00055099]
[1748004437518,1.09147703,108510.0,108500.0,0.00055099]
[1748004437735,1.14631788,108510.0,108500.0,0.00055099]
[1748004437962,0.65439124,108510.0,108500.0,0.00055099]
[1748004438165,0.63229124,108510.0,108500.0,0.00055099]
[1748004438841,0.63929124,108510.0,108500.0,0.00055099]
[1748004439750,0.29929124,108510.0,108500.0,0.00055099]
[1748004439975,0.29929124,108510.0,108500.0,0.21808278]
[1748004439976,0.02543037,108510.0,108500.0,0.21808278]
[1748004440182,0.21896074,108510.0,108500.0,0.25769928]
[1748004440391,0.02543037,108510.0,108500.0,0.26691569]
[1748004440616,0.02243037,108510.0,108500.0,0.28534793]
[1748004440824,0.0224302,108510.0,108500.0,0.28534793]
[1748004441035,0.005,108510.0,108500.0,0.28534793]
[1748004441213,0.005,108510.0,108500.0,0.37489349]
[1748004441457,0.001,108510.0,108500.0,0.77489349]
[1748004441669,0.02764381,108520.0,108510.0,0.26634568]
[1748004441887,0.20272734,108520.0,108510.0,0.0332]
[1748004442099,0.19353045,108510.0,108500.0,0.05242666]
[1748004442302,0.19353045,108510.0,108500.0,1.01895845]
[1748004442502,0.19353045,108510.0,108500.0,1.05005845]
[1748004442714,0.19353045,108510.0,108500.0,1.05927495]
[1748004442926,0.18101168,108510.0,108500.0,1.05927495]
[1748004443166,0.18101168,108510.0,108500.0,1.06127495]
[1748004443385,0.19022733,108510.0,108500.0,1.07049128]
[1748004443592,0.19944281,108510.0,108500.0,1.06127495]
[1748004443804,0.19944281,108510.0,108500.0,0.58131008]
[1748004444016,0.01843071,108510.0,108500.0,1.01074187]
[1748004444225,0.01843071,108510.0,108500.0,1.05997462]
[1748004444457,0.02764628,108510.0,108500.0,1.06919061]
[1748004444662,0.01842867,108520.0,108510.0,0.28327656]
[1748004444868,0.21194104,108520.0,108510.0,0.28327656]
[1748004445100,0.22115593,108520.0,108510.0,0.28327656]
[1748004445315,0.20272734,108520.0,108510.0,0.0313]
[1748004445529,0.19353037,108510.0,108500.0,0.73609936]
[1748004445739,0.19353037,108510.0,108500.0,1.00929936]
[1748004445945,0.19353037,108510.0,108500.0,1.01851577]
[1748004446912,0.19353037,108510.0,108500.0,0.83344403]
[1748004447163,0.1843148,108510.0,108500.0,0.51502745]
[1748004447496,0.1843148,108510.0,108500.0,0.79122745]
[1748004447689,0.1843148,108510.0,108500.0,0.79126745]
[1748004447815,0.1843148,108510.0,108500.0,0.79226745]
[1748004448026,0.1843148,108510.0,108500.0,0.28622745]
[1748004448274,0.1843148,108510.0,108500.0,0.27775099]
[1748004448840,0.27386036,108510.0,108500.0,0.00155099]
[1748004450356,0.27486036,108510.0,108500.0,0.00055099]
[1748004451627,0.66077618,108510.0,108500.0,0.00055099]
[1748004451848,0.69117618,108510.0,108500.0,0.00055099]
[1748004452080,0.71571703,108510.0,108500.0,0.00055099]
[1748004452294,0.74771703,108510.0,108500.0,0.00055099]
[1748004452976,0.61486036,108510.0,108500.0,0.00055099]
[1748004453196,0.61386036,108510.0,108500.0,0.00055099]
[1748004453417,0.66960121,108510.0,108500.0,0.00055099]
[1748004453644,0.67360121,108510.0,108500.0,0.00055099]
[1748004454074,0.67660121,108510.0,108500.0,0.00055099]
[1748004454280,0.79802272,108510.0,108500.0,0.00055099]
[1748004454759,1.63640777,108510.0,108500.0,0.00055099]
[1748004454966,1.70082984,108510.0,108500.0,0.00055099]
[1748004455391,1.70954002,108510.0,108500.0,0.00055099]
[1748004455819,1.63111795,108510.0,108500.0,0.00055099]
[1748004456299,1.63211795,108510.0,108500.0,0.00155099]
[1748004456501,1.91743795,108510.0,108500.0,0.00055099]
[1748004456706,1.92343795,108510.0,108500.0,0.00155099]
[1748004456843,1.92043795,108510.0,108500.0,0.00155099]
[1748004457402,1.91643795,108510.0,108500.0,0.00155099]
[1748004458033,1.92643795,108510.0,108500.0,0.00155099]
[1748004458256,1.13395795,108510.0,108500.0,0.00155099]
[1748004458464,0.96209054,108510.0,108500.0,0.00155099]
[1748004459271,0.97663139,108510.0,108500.0,0.00155099]
[1748004459475,0.63457054,108510.0,108500.0,0.00155099]
[1748004459908,0.95679559,108510.0,108500.0,0.00155099]
[1748004460310,1.0463171,108510.0,108500.0,0.00155099]
[1748004460535,0.63457054,108510.0,108500.0,0.00155099]
[1748004462556,0.62586036,108510.0,108500.0,0.00155099]
[1748004466778,0.28586036,108510.0,108500.0,0.03235099]
[1748004468029,0.28586036,108510.0,108500.0,0.24788278]
[1748004468339,0.012,108510.0,108500.0,0.61553152]
[1748004468562,0.012,108510.0,108500.0,1.10507708]
[1748004469015,0.006,108510.0,108500.0,1.10407708]
[1748004469250,0.001,108510.0,108500.0,1.88399708]
[1748004469481,0.03164611,108510.0,108500.0,1.79445152]
[1748004469711,0.02243054,108510.0,108500.0,1.57687223]
[1748004469851,0.02343054,108510.0,108500.0,1.76220402]
[1748004470109,0.02343054,108510.0,108500.0,1.76120402]
[1748004470110,0.01943054,108510.0,108500.0,1.76120402]
[1748004470315,0.02864611,108510.0,108500.0,1.76220402]
[1748004470517,0.01943054,108510.0,108500.0,1.76320402]
[1748004471533,0.001,108510.0,108500.0,1.76320402]
[1748004471752,0.0194302,108510.0,108500.0,1.76320402]
[1748004472117,0.02864551,108510.0,108500.0,1.76320402]
[1748004472341,0.001,108510.0,108500.0,1.85274958]
[1748004472778,0.001,108510.0,108500.0,1.88464958]
[1748004472983,0.01021497,108510.0,108500.0,1.88464958]
[1748004473192,0.02864542,108510.0,108500.0,1.88464958]
[1748004473393,0.01943011,108510.0,108500.0,1.88464958]
[1748004474207,0.02864551,108510.0,108500.0,1.88464958]
[1748004474427,0.22217579,108510.0,108500.0,1.77667178]
[1748004474635,0.21296082,108510.0,108500.0,1.80432035]
[1748004474840,0.02864593,108510.0,108500.0,1.81353634]
[1748004475441,0.01943045,108510.0,108500.0,1.81353634]
[1748004475612,0.02864593,108510.0,108500.0,1.81353634]
[1748004475817,0.22217638,108510.0,108500.0,1.79510419]
[1748004476029,0.22217638,108510.0,108500.0,1.78576811]
[1748004476228,0.0378615,108510.0,108500.0,1.80420018]
[1748004476430,0.0378615,108510.0,108500.0,1.40420018]
[1748004476641,0.22217638,108510.0,108500.0,1.39498419]
[1748004476837,0.0378615,108510.0,108500.0,1.40420018]
[1748004477041,0.02864593,108510.0,108500.0,1.39498419]
[1748004477290,0.2221763,108510.0,108500.0,1.39498436]
[1748004477490,0.0378615,108510.0,108500.0,1.39498436]
[1748004477726,0.0378615,108510.0,108500.0,1.40420035]
[1748004477853,0.2221763,108510.0,108500.0,0.03130349]
[1748004478058,0.20374585,108510.0,108500.0,0.84166349]
[1748004478465,0.19453037,108510.0,108500.0,0.84166349]
[1748004480171,0.19453037,108510.0,108500.0,1.02599528]
[1748004480358,0.01021514,108510.0,108500.0,1.06286043]
[1748004480568,0.001,108510.0,108500.0,1.06286043]
[1748004480777,0.001,108510.0,108500.0,1.15240599]
[1748004481210,0.001,108510.0,108500.0,1.50694684]
[1748004481414,0.001,108510.0,108500.0,1.55284684]
[1748004481924,0.001,108510.0,108500.0,0.71264599]
[1748004482155,0.02864594,108510.0,108500.0,0.70343]
[1748004482358,0.20374602,108510.0,108500.0,1.37321186]
[1748004482528,0.20374602,108510.0,108500.0,1.39364469]
[1748004482732,0.20374602,108510.0,108500.0,1.39564469]
[1748004483199,0.20374602,108510.0,108500.0,0.004]
[1748004483200,0.24255043,108510.0,108500.0,0.004]
[1748004483371,0.29329158,108510.0,108500.0,0.004]
[1748004483571,0.29329158,108510.0,108500.0,0.204]
[1748004484350,0.97929158,108510.0,108500.0,0.204]
[1748004485528,0.29329158,108510.0,108500.0,0.202]
[1748004485702,0.29329158,108510.0,108500.0,0.2]
[1748004485913,0.29629158,108510.0,108500.0,0.2]
[1748004489567,0.34435055,108510.0,108500.0,0.2]
[1748004489762,0.29629158,108510.0,108500.0,0.2]
[1748004490212,0.29629158,108510.0,108500.0,0.00103778]
[1748004493062,0.32709158,108510.0,108500.0,0.00103778]
[1748004493270,0.35889158,108510.0,108500.0,0.00103778]
[1748004493493,1.31193748,108510.0,108500.0,0.00103778]
[1748004493702,1.41145899,108510.0,108500.0,0.00103778]
[1748004494975,1.31193748,108510.0,108500.0,0.00103778]
[1748004495184,0.91057158,108510.0,108500.0,0.00103778]
[1748004495391,0.63429158,108510.0,108500.0,0.00103778]
[1748004495608,0.63729158,108510.0,108500.0,0.00203778]
[1748004496021,0.64029158,108510.0,108500.0,0.00203778]
[1748004497960,0.67299158,108510.0,108500.0,0.00203778]
[1748004498424,0.70329158,108510.0,108500.0,0.00203778]
[1748004499032,1.02551663,108510.0,108500.0,0.00203778]
[1748004499211,1.05005748,108510.0,108500.0,0.00203778]
[1748004500901,1.06005748,108510.0,108500.0,0.00203778]
[1748004501128,1.14957899,108510.0,108500.0,0.00203778]
[1748004501556,1.13957899,108510.0,108500.0,0.00203778]
[1748004501780,1.35560358,108510.0,108500.0,0.00203778]
[1748004502450,1.36437457,108510.0,108500.0,0.00203778]
[1748004502666,1.38776436,108510.0,108500.0,0.00203778]
[1748004503533,1.37776436,108510.0,108500.0,0.00203778]
[1748004504233,1.37676436,108510.0,108500.0,0.00203778]
[1748004504913,1.62669457,108510.0,108500.0,0.00203778]
[1748004505134,1.35637457,108510.0,108500.0,0.00103778]
[1748004505394,1.00172824,108510.0,108500.0,0.00103778]
[1748004505627,0.64506257,108510.0,108500.0,0.00103778]
[1748004505859,0.30906257,108510.0,108500.0,0.00203778]
[1748004506754,0.64906257,108510.0,108500.0,0.00203778]
[1748004507640,0.64029158,108510.0,108500.0,0.00203778]
[1748004507931,0.72375055,108510.0,108500.0,0.00203778]
[1748004508609,0.64029158,108510.0,108500.0,0.00203778]
[1748004510461,0.30029158,108510.0,108500.0,0.00203778]
[1748004510667,0.64029158,108510.0,108500.0,0.06583778]
[1748004511343,0.64029158,108510.0,108500.0,0.00203778]
[1748004512877,0.64029158,108510.0,108500.0,0.03243778]
[1748004513763,0.64029158,108510.0,108500.0,0.06243778]
[1748004514389,0.64029158,108510.0,108500.0,0.03203778]
[1748004514616,0.64029158,108510.0,108500.0,0.06263778]
[1748004515240,0.64029158,108510.0,108500.0,0.00203778]
[1748004515534,0.72362855,108510.0,108500.0,0.00203778]
[1748004515923,0.64029158,108510.0,108500.0,0.00203778]
[1748004520536,1.31674181,108510.0,108500.0,0.00203778]
[1748004520980,1.33674181,108510.0,108500.0,0.00203778]
[1748004521597,1.32674181,108510.0,108500.0,0.00203778]
[1748004521834,1.33674181,108510.0,108500.0,0.00203778]
[1748004522010,1.42626332,108510.0,108500.0,0.00203778]
[1748004522433,1.41626332,108510.0,108500.0,0.00203778]
[1748004522634,1.44205959,108510.0,108500.0,0.00203778]
[1748004522844,1.44083954,108510.0,108500.0,0.00203778]
[1748004523044,1.45173431,108510.0,108500.0,0.00203778]
[1748004524506,1.45173431,108510.0,108500.0,0.00207778]
[1748004524724,1.46626067,108510.0,108500.0,0.00207778]
[1748004525356,1.18994067,108510.0,108500.0,0.00207778]
[1748004525572,1.48626067,108510.0,108500.0,0.00207778]
[1748004525810,0.33449266,108510.0,108500.0,0.00207778]
[1748004526019,0.33449266,108510.0,108500.0,0.03337778]
[1748004526227,0.33449266,108510.0,108500.0,0.06447778]
[1748004527060,0.67449266,108510.0,108500.0,0.06447778]
[1748004527268,0.64029158,108510.0,108500.0,0.06447778]
[1748004528057,0.66662108,108510.0,108500.0,0.06447778]
[1748004529014,0.008,108510.0,108500.0,0.55277822]
[1748004529440,0.008,108510.0,108500.0,0.64232378]
[1748004530081,0.01721497,108510.0,108500.0,0.64232378]
[1748004530283,0.02243011,108510.0,108500.0,1.04132378]
[1748004530487,0.01321497,108510.0,108500.0,1.04132378]
[1748004530747,0.01621497,108510.0,108500.0,1.04232378]
[1748004530952,0.02764313,108520.0,108510.0,0.27426099]
[1748004531158,0.02764313,108520.0,108510.0,0.76172655]
[1748004531361,0.03685793,108520.0,108510.0,0.76172655]
[1748004531565,0.03685785,108520.0,108510.0,0.76172655]
[1748004532007,0.21194172,108520.0,108510.0,0.74329601]
[1748004532214,0.21194172,108520.0,108510.0,0.76172672]
[1748004532822,0.21194172,108520.0,108510.0,0.76272672]
[1748004533114,0.02764373,108520.0,108510.0,0.77194186]
[1748004533322,0.22115644,108520.0,108510.0,0.77194186]
[1748004533523,0.03685862,108520.0,108510.0,0.53765505]
[1748004533662,0.00921412,108520.0,108510.0,0.7311855]
[1748004533866,0.00921344,108530.0,108520.0,0.20272632]
[1748004534072,0.01842739,108530.0,108520.0,0.97556632]
[1748004534275,0.00921344,108530.0,108520.0,1.06511222]
[1748004534484,0.2211358,108530.0,108520.0,1.07432719]
[1748004534743,0.03685496,108530.0,108520.0,1.47432719]
[1748004534889,0.00921344,108530.0,108520.0,1.48354148]
[1748004535096,0.02764075,108530.0,108520.0,1.48554148]
[1748004535301,0.22113546,108530.0,108520.0,1.47632719]
[1748004535495,0.22113597,108530.0,108520.0,1.47632719]
[1748004536160,0.19349479,108530.0,108520.0,1.26438556]
[1748004536565,0.19349479,108530.0,108520.0,1.32548556]
[1748004536804,0.19349479,108530.0,108520.0,1.51899818]
[1748004537008,0.19349479,108530.0,108520.0,1.5282129]
[1748004537415,0.25868702,108540.0,108530.0,0.21618084]
[1748004537634,0.25868702,108540.0,108530.0,0.25539488]
[1748004537807,0.18426495,108540.0,108530.0,0.26460875]
[1748004538043,0.18428689,108550.0,108540.0,0.0619]
[1748004538223,0.18428689,108550.0,108540.0,0.53392003]
[1748004538224,0.22113557,108550.0,108540.0,0.53392003]
[1748004538457,0.20271148,108550.0,108540.0,0.33814]
[1748004539067,0.20271148,108550.0,108540.0,0.30814]
[1748004539269,0.20322102,108550.0,108540.0,0.30814]
[1748004539887,0.20322102,108550.0,108540.0,0.33844]
[1748004540303,0.20322102,108550.0,108540.0,0.34044]
[1748004540515,0.20322102,108550.0,108540.0,0.52570386]
[1748004540727,0.00054954,108550.0,108540.0,0.56255559]
[1748004540932,0.03739721,108550.0,108540.0,0.56255559]
[1748004541139,0.21243235,108550.0,108540.0,0.553343]
[1748004541339,0.21243252,108550.0,108540.0,0.65210115]
[1748004541543,0.21243286,108550.0,108540.0,0.63367571]
[1748004541741,0.01897363,108550.0,108540.0,0.66131391]
[1748004541920,0.21243286,108550.0,108540.0,0.65210132]
[1748004542160,0.20322094,108550.0,108540.0,0.4652]
[1748004542374,0.27764301,108550.0,108540.0,0.003]
[1748004542585,0.36718857,108550.0,108540.0,0.003]
[1748004542997,0.39938857,108550.0,108540.0,0.00304]
[1748004543211,0.2927665,108550.0,108540.0,0.00304]
[1748004543425,0.20322094,108550.0,108540.0,0.03364]
[1748004543630,0.20322094,108550.0,108540.0,1.03364]
[1748004544246,0.20322094,108550.0,108540.0,1.06454]
[1748004546156,0.00054954,108550.0,108540.0,1.5526424]
[1748004546374,0.00054954,108550.0,108540.0,1.64218796]
[1748004546955,0.00054954,108550.0,108540.0,2.38218796]
[1748004547518,0.00054954,108550.0,108540.0,2.12052881]
[1748004547693,0.00054954,108550.0,108540.0,2.89312881]
[1748004548128,0.00054954,108550.0,108540.0,7.94412881]
[1748004548336,0.002,108570.0,108560.0,0.62980422]
[1748004548515,0.002,108570.0,108560.0,1.39326978]
[1748004548721,0.02963091,108570.0,108560.0,1.38405888]
[1748004548925,0.02042035,108570.0,108560.0,1.38794017]
[1748004549077,0.02042035,108570.0,108560.0,1.78794017]
[1748004549287,0.03884121,108570.0,108560.0,1.78794017]
[1748004549495,0.02963074,108570.0,108560.0,1.78794017]
[1748004549825,0.02042035,108570.0,108560.0,1.78794017]
[1748004550027,0.002,108570.0,108560.0,1.78794017]
[1748004550380,0.01120996,108570.0,108560.0,1.78794017]
[1748004550590,0.002,108570.0,108560.0,1.78894017]
[1748004550794,0.002,108570.0,108560.0,1.80248102]
[1748004551031,0.002,108570.0,108560.0,1.80348102]
[1748004551231,0.002,108570.0,108560.0,1.80448102]
[1748004552476,0.002,108570.0,108560.0,1.80348102]
[1748004552794,0.002,108570.0,108560.0,1.80548102]
[1748004553150,0.002,108570.0,108560.0,1.80248102]
[1748004553352,0.002,108570.0,108560.0,1.80448102]
[1748004553579,0.002,108570.0,108560.0,1.85338102]
[1748004554230,0.03687053,108600.0,108590.0,0.21180484]
[1748004554432,0.03687053,108600.0,108590.0,1.12546205]
[1748004554433,0.21182466,108600.0,108590.0,1.12546205]
[1748004554649,0.21182525,108600.0,108590.0,0.92286556]
[1748004554851,0.18419424,108590.0,108580.0,0.0325]
[1748004554984,0.20261497,108580.0,108570.0,0.0325]
[1748004555190,0.20261497,108580.0,108570.0,0.80094]
[1748004555407,0.19342342,108570.0,108560.0,0.39956]
[1748004555604,0.19342342,108570.0,108560.0,0.0668]
[1748004555605,0.26784549,108570.0,108560.0,0.0668]
[1748004555806,0.19345655,108580.0,108570.0,0.34]
[1748004556017,0.21187571,108580.0,108570.0,0.49434556]
[1748004556198,0.20266634,108580.0,108570.0,0.49434556]
[1748004556397,0.19345655,108580.0,108570.0,0.89434556]
[1748004556601,0.22108475,108580.0,108570.0,0.89434556]
[1748004556803,0.20266626,108580.0,108570.0,0.89434556]
[1748004557214,0.20266626,108580.0,108570.0,0.8048]
[1748004557447,0.20266626,108580.0,108570.0,0.8058]
[1748004558284,0.20266626,108580.0,108570.0,0.7735]
[1748004558482,0.20266626,108580.0,108570.0,0.70958]
[1748004558749,0.20266626,108580.0,108570.0,0.003]
[1748004559077,0.23466626,108580.0,108570.0,0.003]
[1748004559489,0.32421182,108580.0,108570.0,0.003]
[1748004560176,0.20266626,108580.0,108570.0,0.002]
[1748004560562,0.20266626,108580.0,108550.0,0.3732]
[1748004560563,0.21186362,108560.0,108550.0,0.3732]
[1748004560762,0.21186362,108560.0,108550.0,1.26384556]
[1748004560898,0.21186362,108560.0,108550.0,0.49544556]
[1748004561142,0.1934414,108560.0,108550.0,1.26384556]
[1748004561348,0.1934414,108560.0,108550.0,0.49232]
[1748004561758,0.19345906,108550.0,108540.0,1.00304]
[1748004562183,0.22385906,108550.0,108540.0,1.00304]
[1748004562774,0.19145906,108550.0,108540.0,1.00304]
[1748004564282,0.19145906,108550.0,108540.0,1.00204]
[1748004564486,0.19145906,108550.0,108540.0,1.36848822]
[1748004564487,0.01842358,108550.0,108540.0,1.36848822]
[1748004564692,0.01842349,108550.0,108540.0,1.36848839]
[1748004564907,0.20267106,108550.0,108540.0,1.89502386]
[1748004565115,0.20267106,108550.0,108540.0,1.91344981]
[1748004565724,0.20267106,108550.0,108540.0,1.92266266]
[1748004565925,0.01842417,108550.0,108540.0,1.94108801]
[1748004566119,0.00921124,108560.0,108550.0,0.23337098]
[1748004566340,0.02763354,108560.0,108550.0,0.33212829]
[1748004566559,0.01842409,108550.0,108540.0,1.27816]
[1748004566772,0.20267098,108550.0,108540.0,1.4944]
[1748004568101,0.20267098,108550.0,108540.0,1.00204]
[1748004568622,0.32291654,108550.0,108540.0,1.00204]
[1748004568834,0.78313805,108550.0,108540.0,1.00204]
[1748004569267,0.66391654,108550.0,108540.0,1.00204]
[1748004569473,0.54367098,108550.0,108540.0,1.00204]
[1748004570796,0.69631654,108550.0,108540.0,1.00204]
[1748004571392,0.54367098,108550.0,108540.0,1.00204]
[1748004571806,0.66411654,108550.0,108540.0,1.00204]
[1748004572966,0.66581654,108550.0,108540.0,1.00204]
[1748004574598,0.69891654,108550.0,108540.0,1.00204]
[1748004576490,1.04591773,108550.0,108540.0,1.00204]
[1748004576696,1.05591773,108550.0,108540.0,1.00204]
[1748004576890,1.1303398,108550.0,108540.0,1.00204]
[1748004577089,1.1203398,108550.0,108540.0,1.00204]
[1748004577289,1.20086131,108550.0,108540.0,1.00204]
[1748004577552,1.69334131,108550.0,108540.0,1.00204]
[1748004577677,1.69334131,108550.0,108540.0,0.90634]
[1748004577887,1.70309484,108550.0,108540.0,0.89854]
[1748004578089,1.7108692,108550.0,108540.0,0.89854]
[1748004578286,1.7382692,108550.0,108540.0,0.65390629]
[1748004578643,1.34752419,108550.0,108540.0,0.34773871]
[1748004578850,1.34752419,108550.0,108540.0,0.27119594]
[1748004578851,2.11616419,108550.0,108540.0,0.27119594]
[1748004579056,2.11616419,108550.0,108540.0,0.1791104]
[1748004579263,2.12316419,108550.0,108540.0,0.08268763]
[1748004579440,2.12916419,108550.0,108540.0,0.03764486]
[1748004579635,0.56728653,108510.0,108500.0,0.00107778]
[1748004579843,1.00923204,108510.0,108500.0,0.00107778]
[1748004580052,0.99923204,108510.0,108500.0,0.00107778]
[1748004580645,1.02186404,108510.0,108500.0,0.00107778]
[1748004580841,1.01286404,108510.0,108500.0,0.00158732]
[1748004581100,0.64592324,108510.0,108500.0,0.00158732]
[1748004581316,0.63529124,108510.0,108500.0,0.06458732]
[1748004581540,0.63429124,108510.0,108500.0,0.06458732]
[1748004582440,0.65906597,108510.0,108500.0,0.06458732]
[1748004582891,0.66206597,108510.0,108500.0,0.06558732]
[1748004583113,0.74670387,108510.0,108500.0,0.06558732]
[1748004583659,0.74670387,108510.0,108500.0,0.00258732]
[1748004584117,0.66206597,108510.0,108500.0,0.03438732]
[1748004584323,0.66206597,108510.0,108500.0,0.06688732]
[1748004584883,0.66206597,108510.0,108500.0,0.03328732]
[1748004585206,0.66206597,108510.0,108500.0,0.06658732]
[1748004585633,0.66206597,108510.0,108500.0,0.00258732]
[1748004585874,0.74770387,108510.0,108500.0,0.00258732]
[1748004587012,1.02398387,108510.0,108500.0,0.00258732]
[1748004587552,1.36098506,108510.0,108500.0,0.00258732]
[1748004588390,1.37098506,108510.0,108500.0,0.00258732]
[1748004588593,1.39438127,108510.0,108500.0,0.00258732]
[1748004589051,1.40701327,108510.0,108500.0,0.00258732]
[1748004589249,1.38361706,108510.0,108500.0,0.00258732]
[1748004589451,1.48143534,108510.0,108500.0,0.00258732]
[1748004589801,1.47143534,108510.0,108500.0,0.00258732]
[1748004590021,1.48018106,108510.0,108500.0,0.00258732]
[1748004590287,1.40575899,108510.0,108500.0,0.00258732]
[1748004590499,1.07629865,108510.0,108500.0,0.00158732]
[1748004590704,1.39875899,108510.0,108500.0,0.00158732]
[1748004590855,1.40275899,108510.0,108500.0,0.00158732]
[1748004591056,1.40675899,108510.0,108500.0,0.00258732]
[1748004592289,0.88940475,108500.0,108490.0,0.01263225]